[Event "Nové Hrady - Open"]
[Site "Nové Hrady, Czech Republic"]
[Date "2023.08.15"]
[Round "3.9"]
[White "Berkovec, Josef"]
[Black "Postl, František"]
[Result "1/2-1/2"]
[TimeControl "2x90min+30s"]
[WhiteElo "1537"]
[BlackElo "1180"]

1. Nf3 {[%clk 01:30:56]} {[%emt 00:00:04]} d5 {[%clk 01:30:48]} {[%emt
00:00:13]} 2. c4 {[%clk 01:31:20]} {[%emt 00:00:06]} c6 {[%clk 01:30:03]}
{[%emt 00:01:15]} 3. d4 {[%clk 01:31:42]} {[%emt 00:00:08]} Nf6 {[%clk
01:30:12]} {[%emt 00:00:22]} 4. cxd5 {[%clk 01:32:02]} {[%emt 00:00:09]} cxd5
{[%clk 01:30:32]} {[%emt 00:00:09]} 5. Nc3 {[%clk 01:32:23]} {[%emt 00:00:10]}
Nc6 {[%clk 01:29:55]} {[%emt 00:01:07]} 6. Bf4 {[%clk 01:32:45]} {[%emt
00:00:07]} g6 {[%clk 01:29:06]} {[%emt 00:01:20]} 7. e3 {[%clk 01:33:00]}
{[%emt 00:00:14]} Bg7 {[%clk 01:28:52]} {[%emt 00:00:44]} 8. Bb5 {[%clk
01:32:47]} {[%emt 00:00:43]} O-O {[%clk 01:26:53]} {[%emt 00:02:29]} 9. h3
{[%clk 01:32:51]} {[%emt 00:00:27]} a6 {[%clk 01:24:52]} {[%emt 00:02:31]} 10.
Bxc6 {[%clk 01:33:01]} {[%emt 00:00:20]} bxc6 {[%clk 01:23:40]} {[%emt
00:01:43]} 11. O-O {[%clk 01:33:23]} {[%emt 00:00:07]} Re8 {[%clk 01:08:55]}
{[%emt 00:15:15]} 12. Ne5 {[%clk 01:32:54]} {[%emt 00:00:58]} Bb7 {[%clk
01:08:24]} {[%emt 00:01:01]} 13. Na4 {[%clk 01:32:17]} {[%emt 00:01:06]} Ne4
{[%clk 00:55:36]} {[%emt 00:13:20]} 14. f3 {[%clk 01:31:36]} {[%emt 00:01:10]}
f6 {[%clk 00:54:59]} {[%emt 00:01:08]} 15. Nxc6 {[%clk 01:24:41]} {[%emt
00:07:25]} Bxc6 {[%clk 00:54:45]} {[%emt 00:00:44]} 16. fxe4 {[%clk 01:24:57]}
{[%emt 00:00:14]} dxe4 {[%clk 00:54:55]} {[%emt 00:00:20]} 17. Nc5 {[%clk
01:24:31]} {[%emt 00:00:56]} Qb6 {[%clk 00:53:21]} {[%emt 00:02:04]} 18. Qb3+
{[%clk 01:23:45]} {[%emt 00:01:14]} Qxb3 {[%clk 00:51:50]} {[%emt 00:02:02]} 19.
Nxb3 {[%clk 01:20:06]} {[%emt 00:04:08]} 1/2-1/2

[Event "Nové Hrady - Open"]
[Site "Nové Hrady, Czech Republic"]
[Date "2023.08.16"]
[Round "4.1"]
[White "Babula, Milan"]
[Black "Žilavý, Jan"]
[Result "1-0"]
[TimeControl "2x90min+30s"]
[WhiteFideId "300632"]
[BlackFideId "350141"]
[WhiteElo "2087"]
[BlackElo "2130"]

1. e4 {[%clk 01:30:58]} {[%emt 00:00:50]} c5 {[%clk 01:30:50]} 2. Nf3 {[%clk
01:31:23]} e6 {[%clk 01:31:05]} 3. d4 {[%clk 01:31:41]} cxd4 {[%clk 01:31:27]}
4. Nxd4 {[%clk 01:32:07]} a6 {[%clk 01:31:28]} 5. Bd3 {[%clk 01:32:24]} Nf6
{[%clk 01:31:39]} 6. O-O {[%clk 01:31:16]} d6 {[%clk 01:31:37]} 7. Nd2 {[%clk
01:29:58]} Bd7 {[%clk 01:29:48]} 8. b3 {[%clk 01:27:45]} {[%emt 00:30:15]} Nc6
{[%clk 01:28:15]} 9. Bb2 {[%clk 01:28:06]} Be7 {[%clk 01:26:14]} 10. Kh1 {[%clk
01:24:42]} b5 {[%clk 01:21:19]} 11. Qe2 {[%clk 01:22:29]} Qb6 {[%clk 01:16:22]}
12. Nxc6 {[%clk 01:17:35]} Bxc6 {[%clk 01:16:30]} {[%emt 00:00:12]} 13. a4
{[%clk 01:16:42]} {[%emt 00:01:28]} bxa4 {[%clk 01:13:18]} {[%emt 00:03:38]} 14.
Nc4 {[%clk 01:16:13]} {[%emt 00:00:59]} Qc7 {[%clk 01:11:01]} {[%emt 00:02:48]}
15. bxa4 {[%emt 00:15:38]} Rb8 {[%clk 00:59:24]} {[%emt 00:04:22]} 16. f3
{[%clk 00:57:09]} {[%emt 00:12:10]} h5 {[%clk 00:51:12]} {[%emt 00:08:42]} 17.
e5 {[%clk 00:40:31]} {[%emt 00:17:08]} d5 {[%clk 00:36:13]} {[%emt 00:15:29]}
18. Nd6+ {[%clk 00:39:16]} {[%emt 00:01:45]} Bxd6 {[%clk 00:36:26]} {[%emt
00:00:16]} 19. exd6 {[%clk 00:39:39]} {[%emt 00:00:08]} Qd7 {[%clk 00:36:21]}
{[%emt 00:00:34]} 20. Be5 {[%clk 00:33:58]} {[%emt 00:06:11]} a5 {[%clk
00:24:55]} {[%emt 00:11:57]} 21. Rab1 {[%clk 00:32:36]} {[%emt 00:01:52]} O-O
{[%clk 00:24:51]} {[%emt 00:00:33]} 22. Bxf6 {[%clk 00:32:19]} {[%emt
00:00:48]} gxf6 {[%clk 00:25:10]} {[%emt 00:00:11]} 23. f4 {[%clk 00:32:44]}
{[%emt 00:00:05]} Rxb1 {[%clk 00:23:08]} {[%emt 00:02:32]} 24. Rxb1 {[%clk
00:33:12]} {[%emt 00:00:02]} Qxd6 {[%clk 00:20:25]} {[%emt 00:03:13]} 25. Qxh5
{[%clk 00:33:17]} {[%emt 00:00:23]} Rd8 {[%clk 00:18:14]} {[%emt 00:02:43]} 26.
Qh6 {[%clk 00:32:28]} {[%emt 00:01:19]} f5 {[%clk 00:18:37]} {[%emt 00:00:07]}
27. Rb3 {[%clk 00:29:18]} {[%emt 00:03:40]} e5 {[%clk 00:10:57]} {[%emt
00:08:10]} 28. Qg5+ {[%clk 00:29:32]} {[%emt 00:00:16]} Kf8 {[%clk 00:11:13]}
{[%emt 00:00:14]} 29. fxe5 {[%clk 00:29:57]} {[%emt 00:00:04]} Qe7 {[%clk
00:10:44]} {[%emt 00:01:00]} 30. Qh6+ {[%clk 00:30:22]} {[%emt 00:00:05]} 1-0

[Event "Nové Hrady - Open"]
[Site "Nové Hrady, Czech Republic"]
[Date "2023.08.16"]
[Round "4.2"]
[White "Urban, Zdeněk"]
[Black "Pospěch, Radim"]
[Result "1-0"]
[TimeControl "2x90min+30s"]
[WhiteFideId "312754"]
[BlackFideId "329835"]
[WhiteElo "2118"]
[BlackElo "1874"]

1. d4 {[%clk 01:30:30]} {[%emt 00:00:15]} Nf6 {[%clk 01:30:30]} {[%emt
00:00:06]} 2. Nf3 {[%clk 01:31:23]} {[%emt 00:00:23]} d6 {[%clk 01:29:24]}
{[%emt 00:02:06]} 3. Nc3 {[%clk 01:31:03]} {[%emt 00:00:49]} Nbd7 {[%clk
01:28:31]} {[%emt 00:01:24]} 4. e4 {[%clk 01:31:15]} {[%emt 00:00:18]} e5
{[%clk 01:25:47]} {[%emt 00:03:14]} 5. Bc4 {[%clk 01:30:59]} {[%emt 00:00:46]}
Be7 {[%clk 01:22:03]} {[%emt 00:04:14]} 6. a4 {[%clk 01:30:12]} {[%emt
00:01:16]} O-O {[%clk 01:21:38]} {[%emt 00:00:56]} 7. O-O {[%clk 01:30:39]}
{[%emt 00:00:03]} c6 {[%clk 01:17:52]} {[%emt 00:04:15]} 8. h3 {[%clk
01:30:21]} {[%emt 00:00:48]} a5 {[%clk 01:10:35]} {[%emt 00:17:46]} 9. Be3
{[%clk 01:26:20]} Qc7 {[%clk 01:06:08]} 10. Ba2 {[%clk 01:21:42]} {[%emt
00:04:37]} b6 {[%clk 00:59:31]} {[%emt 00:07:07]} 11. Qd2 {[%clk 01:19:19]}
{[%emt 00:02:53]} Ba6 {[%clk 00:51:21]} {[%emt 00:08:40]} 12. Rfd1 {[%clk
01:19:46]} {[%emt 00:00:02]} Rad8 {[%clk 00:51:02]} {[%emt 00:00:49]} 13. Qe1
{[%clk 01:19:34]} {[%emt 00:00:43]} b5 {[%clk 00:37:36]} {[%emt 00:13:57]} 14.
Nd2 {[%clk 01:19:38]} {[%emt 00:00:25]} b4 {[%clk 00:36:40]} {[%emt 00:01:26]}
15. Ne2 {[%clk 01:20:05]} {[%emt 00:00:04]} d5 {[%clk 00:31:05]} {[%emt
00:06:05]} 16. dxe5 {[%clk 01:18:05]} {[%emt 00:02:29]} Nxe5 {[%clk 00:23:58]}
{[%emt 00:07:38]} 17. f4 {[%clk 01:17:09]} {[%emt 00:01:25]} Nc4 {[%clk
00:20:19]} {[%emt 00:04:10]} 18. Bxc4 {[%clk 01:16:36]} {[%emt 00:01:02]} dxc4
{[%clk 00:16:31]} {[%emt 00:04:18]} 19. Ng3 {[%clk 01:15:51]} {[%emt 00:01:14]}
Qb7 {[%clk 00:10:40]} {[%emt 00:06:23]} 20. Qf2 {[%clk 01:15:35]} {[%emt
00:00:45]} c5 {[%clk 00:05:48]} {[%emt 00:05:23]} 21. Nf5 {[%clk 01:10:20]}
{[%emt 00:05:43]} Rfe8 {[%clk 00:03:25]} {[%emt 00:02:55]} 22. e5 {[%clk
01:07:32]} {[%emt 00:03:17]} Nd5 {[%clk 00:02:37]} {[%emt 00:01:18]} 23. Nxe7+
{[%clk 01:07:43]} {[%emt 00:00:18]} Qxe7 {[%clk 00:02:48]} {[%emt 00:00:20]} 24.
Bxc5 {[%clk 01:07:23]} {[%emt 00:00:50]} Qe6 {[%clk 00:03:07]} {[%emt
00:00:12]} 25. Ne4 {[%clk 01:07:19]} {[%emt 00:00:33]} c3 {[%clk 00:03:01]}
{[%emt 00:00:36]} 26. bxc3 {[%clk 01:07:00]} {[%emt 00:00:50]} Nxc3 {[%clk
00:02:46]} {[%emt 00:00:45]} 27. Nxc3 {[%clk 01:03:54]} {[%emt 00:03:35]} bxc3
{[%clk 00:03:11]} {[%emt 00:00:04]} 28. Bb6 {[%clk 01:03:15]} {[%emt 00:01:10]}
Rxd1+ {[%clk 00:03:29]} {[%emt 00:00:12]} 29. Rxd1 {[%clk 01:03:11]} {[%emt
00:00:34]} Qc4 {[%clk 00:03:47]} {[%emt 00:00:12]} 30. Bxa5 {[%clk 01:03:06]}
{[%emt 00:00:36]} Qxa4 {[%clk 00:03:53]} {[%emt 00:00:24]} 31. Bxc3 {[%clk
01:02:29]} {[%emt 00:01:07]} Bb7 {[%clk 00:03:58]} {[%emt 00:00:25]} 32. f5
{[%clk 00:37:40]} {[%emt 00:25:16]} h6 {[%clk 00:04:11]} {[%emt 00:00:19]} 33.
Qg3 {[%clk 00:31:04]} {[%emt 00:07:05]} Qxc2 {[%clk 00:04:11]} {[%emt
00:00:31]} 34. Rd7 {[%clk 00:30:16]} {[%emt 00:01:14]} Qb3 {[%clk 00:02:58]}
{[%emt 00:01:47]} 35. e6 {[%clk 00:30:24]} {[%emt 00:00:21]} 1-0

[Event "Nové Hrady - Open"]
[Site "Nové Hrady, Czech Republic"]
[Date "2023.08.16"]
[Round "4.3"]
[White "Bosák, Jan"]
[Black "Garabik, Marek"]
[Result "1-0"]
[TimeControl "2x90min+30s"]
[WhiteFideId "314692"]
[BlackFideId "23717742"]
[WhiteElo "2082"]
[BlackElo "1738"]

1. Nf3 {[%clk 01:30:56]} {[%emt 00:00:04]} e6 {[%clk 01:29:55]} {[%emt
00:01:06]} 2. d4 {[%clk 01:30:51]} {[%emt 00:00:35]} d5 {[%clk 01:30:19]}
{[%emt 00:00:06]} 3. c4 {[%clk 01:30:49]} {[%emt 00:00:31]} Nf6 {[%clk
01:30:39]} {[%emt 00:00:09]} 4. Bg5 {[%clk 01:30:35]} {[%emt 00:00:44]} Be7
{[%clk 01:30:46]} {[%emt 00:00:25]} 5. Nc3 {[%clk 01:30:28]} {[%emt 00:00:37]}
O-O {[%clk 01:30:53]} {[%emt 00:00:23]} 6. e3 {[%clk 01:30:27]} {[%emt
00:00:30]} h6 {[%clk 01:31:17]} {[%emt 00:00:07]} 7. Bh4 {[%clk 01:30:29]}
{[%emt 00:00:27]} Ne4 {[%clk 01:30:21]} {[%emt 00:01:27]} 8. Bxe7 {[%clk
01:29:00]} {[%emt 00:01:58]} Qxe7 {[%clk 01:30:42]} {[%emt 00:00:09]} 9. Rc1
{[%clk 01:25:26]} {[%emt 00:04:04]} Rd8 {[%clk 01:28:26]} {[%emt 00:02:47]} 10.
Bd3 {[%clk 01:24:15]} {[%emt 00:01:39]} Nxc3 {[%clk 01:25:37]} {[%emt
00:03:20]} 11. Rxc3 {[%clk 01:24:24]} {[%emt 00:00:22]} dxc4 {[%clk 01:25:35]}
{[%emt 00:00:31]} 12. Rxc4 {[%clk 01:23:02]} {[%emt 00:01:52]} b6 {[%clk
01:25:12]} {[%emt 00:00:53]} 13. Be4 {[%clk 01:16:44]} {[%emt 00:16:15]} Ba6
{[%clk 01:24:21]} 14. Rc3 {[%clk 01:14:20]} c6 {[%clk 01:24:16]} 15. Ne5 {[%clk
01:10:24]} Rc8 {[%clk 01:23:04]} {[%emt 00:01:30]} 16. Nxc6 {[%clk 01:05:03]}
{[%emt 00:05:52]} Nxc6 {[%clk 01:23:23]} {[%emt 00:00:12]} 17. Bxc6 {[%clk
01:05:20]} {[%emt 00:00:11]} Qb4 {[%clk 01:20:25]} {[%emt 00:03:28]} 18. Qb3
{[%clk 01:04:35]} {[%emt 00:01:15]} Qxb3 {[%clk 01:20:36]} {[%emt 00:00:20]} 19.
axb3 {[%clk 01:04:15]} {[%emt 00:00:50]} Rab8 {[%clk 01:20:52]} {[%emt
00:00:13]} 20. Kd2 {[%clk 01:01:47]} {[%emt 00:02:57]} Kf8 {[%clk 01:20:25]}
{[%emt 00:00:59]} 21. b4 {[%clk 01:00:55]} {[%emt 00:01:22]} Bb7 {[%clk
01:20:24]} {[%emt 00:00:31]} 22. Bxb7 {[%clk 00:58:36]} {[%emt 00:02:48]} Rxc3
{[%clk 01:20:36]} {[%emt 00:00:19]} 23. bxc3 {[%clk 00:58:59]} {[%emt
00:00:07]} Rxb7 {[%clk 01:20:57]} {[%emt 00:00:09]} 24. b5 {[%clk 00:58:03]}
{[%emt 00:01:26]} Ke7 {[%clk 01:21:11]} {[%emt 00:00:16]} 25. c4 {[%clk
00:57:35]} {[%emt 00:00:58]} Kd6 {[%clk 01:21:31]} {[%emt 00:00:09]} 26. Kc3
{[%clk 00:57:35]} {[%emt 00:00:30]} f5 {[%clk 01:21:04]} {[%emt 00:00:57]} 27.
Kb4 {[%clk 00:57:31]} {[%emt 00:00:35]} g5 {[%clk 01:21:22]} {[%emt 00:00:11]}
28. Rd1 {[%clk 00:51:54]} {[%emt 00:06:06]} Rc7 {[%clk 01:20:43]} {[%emt
00:01:10]} 29. Rd2 {[%clk 00:49:46]} {[%emt 00:02:38]} h5 {[%clk 01:20:42]}
{[%emt 00:00:31]} 30. f4 {[%clk 00:48:55]} {[%emt 00:01:21]} g4 {[%clk
01:21:00]} {[%emt 00:00:12]} 31. c5+ {[%clk 00:48:04]} {[%emt 00:01:21]} Kd5
{[%clk 01:21:12]} {[%emt 00:00:18]} 32. Rc2 {[%clk 00:46:25]} {[%emt 00:02:10]}
Rb7 {[%clk 01:20:28]} {[%emt 00:01:14]} 33. Rc3 {[%clk 00:42:41]} {[%emt
00:04:13]} h4 {[%clk 01:20:25]} {[%emt 00:00:33]} 34. Kb3 {[%clk 00:42:13]}
{[%emt 00:00:59]} Rb8 {[%clk 01:19:08]} {[%emt 00:01:46]} 35. Kc2 {[%clk
00:41:13]} {[%emt 00:01:30]} Rb7 {[%clk 01:17:54]} {[%emt 00:01:45]} 36. Kd3
{[%clk 00:41:28]} {[%emt 00:00:14]} Rb8 {[%clk 01:18:14]} {[%emt 00:00:10]} 37.
Rc2 {[%clk 00:37:11]} {[%emt 00:04:48]} Rb7 {[%clk 01:18:34]} {[%emt 00:00:10]}
38. cxb6 {[%clk 00:36:52]} {[%emt 00:00:48]} axb6 {[%clk 01:18:05]} {[%emt
00:01:00]} 39. Rc8 {[%clk 00:36:55]} {[%emt 00:00:26]} Kd6 {[%clk 01:18:14]}
{[%emt 00:00:21]} 40. Rd8+ {[%clk 00:36:11]} {[%emt 00:01:09]} Ke7 {[%clk
01:18:19]} {[%emt 00:00:30]} 41. Rh8 {[%emt 00:00:12]} Kf6 {[%emt 00:00:48]} 42.
e4 {[%clk 00:32:52]} {[%emt 00:03:20]} Kg7 {[%clk 01:18:31]} {[%emt 00:00:48]}
43. Rxh4 {[%clk 00:33:06]} {[%emt 00:00:15]} Ra7 {[%clk 01:18:53]} {[%emt
00:00:08]} 44. exf5 {[%clk 00:33:07]} {[%emt 00:00:28]} exf5 {[%clk 01:19:16]}
{[%emt 00:00:08]} 45. Kc4 {[%clk 00:30:48]} {[%emt 00:02:50]} Ra4+ {[%clk
01:19:29]} {[%emt 00:00:17]} 46. Kd5 {[%clk 00:30:54]} {[%emt 00:00:23]} Rb4
{[%clk 01:19:57]} 47. Kc6 {[%clk 00:30:00]} {[%emt 00:01:26]} Rxd4 {[%clk
01:20:18]} {[%emt 00:00:10]} 48. Kxb6 {[%clk 00:30:25]} {[%emt 00:00:05]} Rxf4
{[%clk 01:20:25]} {[%emt 00:00:23]} 49. h3 {[%clk 00:30:32]} {[%emt 00:00:23]}
gxh3 {[%clk 01:20:17]} {[%emt 00:00:37]} 50. Rxh3 {[%clk 00:30:52]} {[%emt
00:00:10]} Rb4 {[%clk 01:20:22]} {[%emt 00:00:26]} 51. Kc6 {[%clk 00:30:49]}
{[%emt 00:00:33]} Kf6 {[%clk 01:20:09]} {[%emt 00:00:43]} 52. b6 {[%clk
00:30:44]} {[%emt 00:00:34]} Rb2 {[%clk 01:19:59]} {[%emt 00:00:40]} 53. Rg3
{[%clk 00:28:53]} {[%emt 00:02:21]} 1-0

[Event "Nové Hrady - Open"]
[Site "Nové Hrady, Czech Republic"]
[Date "2023.08.16"]
[Round "4.4"]
[White "Matyska, Jiří"]
[Black "Šimůnek, Jakub Šimon"]
[Result "0-1"]
[TimeControl "2x90min+30s"]
[WhiteFideId "309370"]
[BlackFideId "23709464"]
[WhiteElo "1852"]
[BlackElo "1921"]

1. d4 {[%clk 01:30:57]} {[%emt 00:00:03]} d5 {[%clk 01:30:54]} {[%emt
00:00:07]} 2. Nf3 {[%clk 01:31:01]} {[%emt 00:00:25]} Nf6 {[%clk 01:31:14]}
{[%emt 00:00:11]} 3. Bg5 {[%clk 01:30:37]} {[%emt 00:00:53]} c6 {[%clk
01:30:30]} {[%emt 00:01:15]} 4. c3 {[%clk 01:30:33]} {[%emt 00:00:34]} Bf5
{[%clk 01:30:06]} {[%emt 00:00:54]} 5. Nh4 {[%clk 01:29:36]} {[%emt 00:01:26]}
Be4 {[%clk 01:29:18]} {[%emt 00:01:19]} 6. f3 {[%clk 01:29:05]} {[%emt
00:01:00]} Bg6 {[%clk 01:28:16]} {[%emt 00:01:32]} 7. Nd2 {[%clk 01:28:29]}
{[%emt 00:01:06]} Nbd7 {[%clk 01:26:11]} {[%emt 00:02:35]} 8. e4 {[%clk
01:27:24]} {[%emt 00:01:36]} dxe4 {[%clk 01:25:24]} {[%emt 00:01:17]} 9. fxe4
{[%clk 01:27:37]} {[%emt 00:00:17]} Bxe4 {[%clk 01:20:56]} {[%emt 00:04:58]} 10.
Bc4 {[%clk 01:24:53]} {[%emt 00:03:13]} Bd5 {[%clk 01:18:25]} {[%emt 00:03:01]}
11. Qe2 {[%clk 01:22:49]} {[%emt 00:13:33]} e6 {[%clk 01:16:47]} 12. O-O {[%clk
01:22:48]} Bxc4 {[%clk 01:14:58]} 13. Nxc4 {[%clk 01:23:04]} Be7 {[%clk
01:15:14]} 14. Rae1 {[%clk 01:21:24]} h6 {[%clk 01:07:48]} {[%emt 00:04:33]} 15.
Ng6 {[%clk 01:16:29]} {[%emt 00:05:24]} Rg8 {[%clk 00:58:37]} {[%emt 00:09:42]}
16. Nf4 {[%clk 01:13:10]} {[%emt 00:03:49]} Nf8 {[%clk 00:47:14]} {[%emt
00:11:54]} 17. Bxf6 {[%clk 01:03:33]} {[%emt 00:10:06]} Bxf6 {[%clk 00:43:47]}
{[%emt 00:03:57]} 18. Qg4 {[%clk 01:02:56]} {[%emt 00:01:04]} Qe7 {[%clk
00:30:30]} {[%emt 00:13:50]} 19. Ne3 {[%clk 00:41:40]} {[%emt 00:21:46]} Bg5
{[%clk 00:16:41]} {[%emt 00:14:19]} 20. d5 {[%clk 00:32:34]} {[%emt 00:09:36]}
Bxf4 {[%clk 00:14:55]} {[%emt 00:02:16]} 21. Qxf4 {[%clk 00:32:48]} {[%emt
00:00:16]} cxd5 {[%clk 00:12:19]} {[%emt 00:03:06]} 22. Nxd5 {[%clk 00:31:39]}
{[%emt 00:01:39]} Qc5+ {[%clk 00:11:57]} {[%emt 00:00:52]} 23. Kh1 {[%clk
00:32:01]} {[%emt 00:00:08]} O-O-O {[%clk 00:11:24]} {[%emt 00:01:03]} 24. Qxf7
{[%clk 00:32:04]} {[%emt 00:00:27]} Rh8 {[%clk 00:09:13]} {[%emt 00:02:40]} 25.
Nf4 {[%clk 00:29:32]} {[%emt 00:03:03]} e5 {[%clk 00:06:39]} {[%emt 00:03:04]}
26. Qf5+ {[%clk 00:29:22]} {[%emt 00:00:39]} Kb8 {[%clk 00:06:28]} {[%emt
00:00:42]} 27. Nd3 {[%clk 00:26:39]} {[%emt 00:03:12]} Qd5 {[%clk 00:05:44]}
{[%emt 00:01:15]} 28. Nb4 {[%clk 00:23:50]} {[%emt 00:03:19]} Qe6 {[%clk
00:05:00]} {[%emt 00:01:15]} 29. Rxe5 {[%clk 00:21:08]} {[%emt 00:03:11]} Qxf5
{[%clk 00:05:09]} {[%emt 00:00:21]} 30. Rexf5 {[%clk 00:21:36]} {[%emt
00:00:01]} Ne6 {[%clk 00:05:27]} {[%emt 00:00:13]} 31. h3 {[%clk 00:21:42]}
{[%emt 00:00:24]} Ng5 {[%clk 00:04:58]} {[%emt 00:00:59]} 32. Kh2 {[%emt
00:02:46]} Rd2 {[%emt 00:06:26]} 33. R1f2 {[%clk 00:13:52]} {[%emt 00:00:40]}
Rhd8 {[%clk 00:04:44]} {[%emt 00:00:12]} 34. Rf8 {[%clk 00:13:48]} {[%emt
00:00:33]} Kc7 {[%clk 00:04:19]} {[%emt 00:00:57]} 35. Rxd8 {[%clk 00:14:00]}
{[%emt 00:00:17]} Rxf2 {[%clk 00:04:44]} {[%emt 00:00:05]} 36. Rg8 {[%emt
00:01:34]} Ne6 {[%clk 00:03:46]} {[%emt 00:00:09]} 37. Nd3 {[%clk 00:11:36]}
{[%emt 00:03:08]} Rd2 {[%clk 00:03:58]} {[%emt 00:00:18]} 38. Ne5 {[%clk
00:12:02]} {[%emt 00:00:05]} Rxb2 {[%clk 00:03:13]} {[%emt 00:01:15]} 39. Re8
{[%clk 00:11:56]} {[%emt 00:00:35]} Nf4 {[%clk 00:03:32]} {[%emt 00:00:11]} 40.
Kg3 {[%clk 00:11:15]} {[%emt 00:01:11]} g5 {[%clk 00:03:33]} {[%emt 00:00:30]}
41. Re7+ {[%clk 00:11:27]} {[%emt 00:00:18]} Kc8 {[%clk 00:02:37]} {[%emt
00:01:27]} 42. Re8+ {[%clk 00:09:47]} {[%emt 00:02:09]} Kc7 {[%clk 00:03:00]}
{[%emt 00:00:07]} 43. Re7+ {[%clk 00:10:15]} Kd8 {[%clk 00:03:06]} {[%emt
00:00:26]} 44. Rh7 {[%clk 00:10:39]} {[%emt 00:00:06]} Rxg2+ {[%clk 00:03:27]}
{[%emt 00:00:08]} 45. Kf3 {[%clk 00:11:08]} Rxa2 {[%clk 00:03:42]} {[%emt
00:00:17]} 46. Rxb7 {[%clk 00:11:23]} {[%emt 00:00:14]} Ra3 {[%clk 00:03:55]}
{[%emt 00:00:17]} 47. Kg4 {[%clk 00:11:23]} {[%emt 00:00:30]} Rxc3 {[%clk
00:03:37]} {[%emt 00:00:49]} 48. h4 {[%clk 00:11:04]} {[%emt 00:00:48]} Rc7
{[%clk 00:02:54]} {[%emt 00:01:14]} 49. Nf7+ {[%clk 00:09:16]} {[%emt
00:02:17]} Kd7 {[%clk 00:01:58]} {[%emt 00:01:26]} 50. Rb4 {[%clk 00:09:05]}
{[%emt 00:00:40]} Ne6 {[%clk 00:01:41]} {[%emt 00:00:49]} 51. Nxh6 {[%clk
00:08:44]} {[%emt 00:00:51]} gxh4 {[%clk 00:02:04]} {[%emt 00:00:06]} 52. Kxh4
{[%clk 00:08:42]} {[%emt 00:00:32]} a5 {[%clk 00:01:56]} {[%emt 00:00:39]} 53.
Rb6 {[%clk 00:08:52]} {[%emt 00:00:20]} Ra7 {[%clk 00:02:19]} {[%emt 00:00:07]}
54. Nf5 {[%clk 00:09:10]} {[%emt 00:00:11]} Nc5 {[%clk 00:01:39]} {[%emt
00:01:11]} 55. Nd4 {[%clk 00:09:10]} {[%emt 00:00:27]} Ra6 {[%clk 00:00:56]}
{[%emt 00:01:15]} 56. Rb5 {[%clk 00:09:11]} {[%emt 00:00:30]} Kd6 {[%clk
00:01:18]} {[%emt 00:00:09]} 57. Kg4 {[%clk 00:09:01]} {[%emt 00:00:39]} a4
{[%clk 00:00:51]} {[%emt 00:00:57]} 58. Nc2 {[%clk 00:08:43]} {[%emt 00:00:47]}
Kd5 {[%clk 00:00:41]} {[%emt 00:00:41]} 59. Na3 {[%clk 00:08:00]} {[%emt
00:01:13]} Kd4 {[%clk 00:00:55]} {[%emt 00:00:16]} 60. Kf3 {[%clk 00:08:21]}
{[%emt 00:00:07]} Nb3 {[%clk 00:01:15]} {[%emt 00:00:11]} 61. Ke2 {[%clk
00:08:15]} {[%emt 00:00:36]} Kc3 {[%clk 00:01:36]} {[%emt 00:00:10]} 62. Rb8
{[%clk 00:08:13]} {[%emt 00:00:32]} Kb2 {[%clk 00:01:41]} {[%emt 00:00:25]} 63.
Nc4+ {[%clk 00:08:25]} {[%emt 00:00:17]} Kc3 {[%clk 00:02:02]} {[%emt
00:00:10]} 64. Na3 {[%clk 00:08:49]} {[%emt 00:00:06]} Rc6 {[%clk 00:01:56]}
{[%emt 00:00:37]} 65. Nb5+ {[%clk 00:08:51]} {[%emt 00:00:27]} Kb2 {[%clk
00:02:09]} {[%emt 00:00:17]} 66. Ra8 {[%clk 00:08:45]} {[%emt 00:00:36]} Nc5
{[%clk 00:02:00]} {[%emt 00:00:39]} 67. Ke3 {[%clk 00:08:55]} {[%emt 00:00:19]}
Rb6 {[%clk 00:02:17]} {[%emt 00:00:13]} 68. Ra5 {[%clk 00:07:41]} {[%emt
00:01:45]} Kb3 {[%clk 00:02:17]} {[%emt 00:00:30]} 69. Nd4+ {[%clk 00:08:04]}
{[%emt 00:00:08]} Kb4 {[%clk 00:02:36]} {[%emt 00:00:10]} 70. Ra8 {[%clk
00:08:17]} {[%emt 00:00:16]} Na6 {[%clk 00:02:10]} {[%emt 00:00:57]} 71. Ra7
{[%clk 00:07:50]} {[%emt 00:00:56]} Kc3 {[%clk 00:02:13]} {[%emt 00:00:27]} 72.
Ne2+ {[%clk 00:06:10]} {[%emt 00:02:11]} Kb2 {[%clk 00:02:27]} {[%emt
00:00:15]} 73. Kd3 {[%clk 00:06:28]} {[%emt 00:00:12]} a3 {[%clk 00:02:34]}
{[%emt 00:00:24]} 74. Nc3 {[%clk 00:06:47]} {[%emt 00:00:10]} Rd6+ {[%clk
00:02:30]} {[%emt 00:00:34]} 75. Kc4 {[%clk 00:06:30]} {[%emt 00:00:47]} Rc6+
{[%clk 00:02:55]} {[%emt 00:00:06]} 76. Kb5 {[%clk 00:06:51]} {[%emt 00:00:09]}
Rxc3 {[%clk 00:03:20]} {[%emt 00:00:05]} 77. Rxa6 {[%clk 00:07:17]} {[%emt
00:00:03]} a2 {[%clk 00:03:38]} {[%emt 00:00:13]} 78. Kb4 {[%clk 00:06:57]}
{[%emt 00:00:49]} Rb3+ {[%clk 00:04:01]} {[%emt 00:00:08]} 79. Kc4 {[%clk
00:07:25]} {[%emt 00:00:02]} Rb8 {[%clk 00:04:26]} {[%emt 00:00:04]} 80. Kd4
{[%emt 00:00:12]} 0-1